bitfinex/quotes_SOLUSD_20250223
["timestamp","ask_amount","ask_price","bid_price","bid_amount"]
[1740352032277,0.0001,168.28,168.24,101.53933236]
[1740352034007,0.0001,168.28,168.24,81.163]
[1740352034305,14.43253236,168.27,168.24,81.163]
[1740352034603,14.43263236,168.28,168.24,81.163]
[1740352034977,20.37533236,168.28,168.24,81.163]
[1740352035177,14.43253236,168.27,168.24,81.163]
[1740352036203,14.43253236,168.27,168.24,0.063]
[1740352036704,14.43253236,168.26,168.24,0.063]
[1740352036999,14.43253236,168.25,168.24,0.063]
[1740352037578,15.97663236,168.25,168.24,0.063]
[1740352038386,21.92013236,168.25,168.24,0.063]
[1740352040105,40.56978122,168.25,168.24,0.063]
[1740352040407,21.92013236,168.25,168.24,0.063]
[1740352041695,5.9435,168.25,168.24,0.063]
[1740352041883,20.37603236,168.25,168.24,0.063]
[1740352042708,39.02568122,168.25,168.24,0.063]
[1740352044806,20.37603236,168.25,168.24,0.063]
[1740352045111,24.97603236,168.25,168.24,0.063]
[1740352045686,4.6,168.25,168.24,0.063]
[1740352046806,20.37583236,168.26,168.24,0.063]
[1740352047008,4.6,168.25,168.24,0.063]
[1740352048107,4.6,168.27,168.24,0.063]
[1740352048793,19.03253236,168.27,168.24,0.063]
[1740352048989,4.6,168.27,168.24,0.063]
[1740352049191,4.63,168.27,168.24,0.063]
[1740352049397,19.06253236,168.27,168.24,0.063]
[1740352050594,25.00533236,168.27,168.24,0.063]
[1740352051203,14.43253236,168.26,168.24,0.063]
[1740352053721,14.43253236,168.25,168.24,0.063]
[1740352056019,20.37603236,168.25,168.24,0.063]
[1740352058303,46.86958122,168.25,168.24,0.063]
[1740352058613,61.30211358,168.25,168.24,0.063]
[1740352058792,46.86958122,168.25,168.24,0.063]
[1740352059220,28.21993236,168.25,168.24,0.063]
[1740352060516,20.37603236,168.25,168.24,0.063]
[1740352061203,14.43253236,168.25,168.24,0.063]
[1740352061803,20.37603236,168.25,168.24,0.063]
[1740352064641,39.02568122,168.25,168.24,0.063]
[1740352069644,33.8380034,168.25,168.24,0.063]
[1740352073355,33.8680034,168.25,168.24,0.063]
[1740352073527,15.21835454,168.25,168.24,0.063]
[1740352073729,10.4935,168.25,168.24,0.063]
[1740352074538,19.73835454,168.25,168.24,0.063]
[1740352082273,38.3880034,168.25,168.24,0.063]
[1740352083676,20.0,168.21,168.16,0.063]
[1740352083882,9.24485454,168.17,168.16,0.063]
[1740352086873,33.8408034,168.17,168.16,0.063]
[1740352087075,70.82022156,168.17,168.16,0.063]
[1740352087595,151.62022156,168.17,168.16,0.063]
[1740352087805,71.79022156,168.17,168.16,0.063]
[1740352088864,19.61964886,168.16,168.15,0.063]
[1740352089067,65.84392156,168.16,168.15,0.063]
[1740352089674,65.84392156,168.16,168.08,0.063]
[1740352089879,9.24485454,168.09,168.08,0.063]
[1740352091164,13.74485454,168.1,168.08,0.063]
[1740352091584,94.54485454,168.14,168.09,9.24485454]
[1740352091796,13.74485454,168.14,168.09,9.24485454]
[1740352092184,9.24485454,168.13,168.08,81.163]
[1740352092485,9.24485454,168.11,168.08,81.163]
[1740352093066,4.5,168.14,168.09,9.24485454]
[1740352093267,99.44964886,168.18,168.09,9.24485454]
[1740352093268,4.52,168.17,168.12,9.24485454]
[1740352093590,4.52,168.17,168.13,15.19255454]
[1740352093905,4.52,168.17,168.15,14.45103308]
[1740352094108,161.0458,168.24,168.13,103.4583]
[1740352094109,86.7442,168.24,168.13,103.4583]
[1740352094267,18.97103308,168.22,168.16,14.45103308]
[1740352094598,14.45103308,168.21,168.16,14.45103308]
[1740352094800,14.45103308,168.19,168.13,97.09223308]
[1740352095002,4.52,168.22,168.1,14.45103308]
[1740352095003,14.45103308,168.15,168.1,14.45103308]
[1740352095159,14.45103308,168.15,168.1,95.55103308]
[1740352095470,14.45103308,168.13,168.1,81.1]
[1740352095670,14.45103308,168.12,168.09,1.6632]
[1740352096778,14.45103308,168.12,168.08,0.063]
[1740352097166,14.45103308,168.11,168.08,0.063]
[1740352097368,14.45103308,168.09,168.08,0.063]
[1740352097783,20.40013308,168.09,168.08,0.063]
[1740352098563,14.45103308,168.09,168.08,0.063]
[1740352098772,14.45103308,168.13,168.08,0.063]
[1740352098994,18.99103308,168.14,168.08,14.51403308]
[1740352099296,14.45103308,168.11,168.08,0.063]
[1740352099500,10.4875,168.14,168.08,0.063]
[1740352099988,14.45103308,168.13,168.08,0.063]
[1740352100294,14.45103308,168.13,168.08,14.51403308]
[1740352100491,105.73773308,168.16,168.1,14.45103308]
[1740352100681,105.73773308,168.16,168.09,14.45103308]
[1740352100682,14.45103308,168.15,168.09,14.45103308]
[1740352101065,14.45103308,168.14,168.09,14.45103308]
[1740352101270,14.45103308,168.12,168.08,81.163]
[1740352101470,14.45103308,168.1,168.08,0.063]
[1740352101670,14.45103308,168.11,168.08,0.063]
[1740352101885,99.44964886,168.15,168.08,0.063]
[1740352101886,14.45103308,168.1,168.08,0.063]
[1740352102596,18.99103308,168.13,168.08,0.063]
[1740352103302,14.45103308,168.12,168.08,0.063]
[1740352105193,14.45103308,168.11,168.08,0.063]
[1740352105423,14.45103308,168.1,168.08,0.063]
[1740352105903,14.45103308,168.09,168.08,0.063]
[1740352108384,14.45103308,168.1,168.08,0.063]
[1740352109489,14.45103308,168.09,168.08,0.063]
[1740352109691,14.45103308,168.11,168.08,0.063]
[1740352110434,14.45103308,168.1,168.08,0.063]
[1740352110582,14.45103308,168.09,168.08,0.063]
[1740352111489,20.40013308,168.09,168.08,0.063]
[1740352113596,39.04978194,168.09,168.08,0.063]
[1740352123611,20.40013308,168.09,168.08,0.063]
[1740352125519,24.90013308,168.09,168.08,0.063]
[1740352127707,19.71060791,168.09,168.08,0.063]
[1740352135203,38.36025677,168.09,168.08,0.063]
[1740352135639,75.40628841,168.09,168.07,0.063]
[1740352135951,127.10753955,168.08,168.07,0.063]
[1740352136109,46.30753955,168.08,168.07,0.063]
[1740352136508,20.0,168.05,168.0,0.03]
[1740352136828,9.26150791,168.01,168.0,0.03]
[1740352137039,9.26150791,168.02,168.0,0.03]
[1740352137926,4.48,168.03,168.0,0.03]
[1740352138134,29.26150791,168.05,168.0,9.29150791]
[1740352138135,9.26150791,168.05,168.0,9.29150791]
[1740352138325,138.2,168.08,168.01,9.26150791]
[1740352138326,9.26150791,168.07,168.01,9.26150791]
[1740352138940,9.26150791,168.07,168.0,81.13]
[1740352138941,9.26150791,168.07,168.02,9.26150791]
[1740352139242,4.48,168.08,168.03,15.21280791]
[1740352139544,4.48,168.08,168.04,10.79560791]
[1740352140414,13.74150791,168.11,168.05,9.26150791]
[1740352140731,9.26150791,168.1,168.04,91.89560791]
[1740352141230,9.26150791,168.09,168.04,88.585]
[1740352142217,13.74150791,168.1,168.04,97.84650791]
[1740352144237,13.74150791,168.1,168.05,0.03]
[1740352144436,9.26150791,168.1,168.05,0.03]
[1740352147949,4.48,168.11,168.05,9.29150791]
[1740352148121,4.48,168.11,168.05,0.03]
[1740352148122,9.26150791,168.1,168.05,0.03]
[1740352148520,9.26150791,168.13,168.07,9.26150791]
[1740352148722,13.74150791,168.13,168.07,90.36150791]
[1740352148913,90.12450791,168.15,168.09,9.26150791]
[1740352149113,4.48,168.14,168.09,9.26150791]
[1740352149341,9.26150791,168.12,168.07,81.1]
[1740352149532,9.26150791,168.11,168.07,81.1]
[1740352149836,9.26150791,168.1,168.07,81.1]
[1740352150036,5.9485,168.11,168.07,81.1]
[1740352150037,9.26150791,168.09,168.07,81.1]
[1740352150242,9.26150791,168.09,168.05,5.9803]
[1740352151240,9.26150791,168.08,168.05,0.03]
[1740352151642,13.76150791,168.08,168.05,0.03]
[1740352152556,9.26150791,168.11,168.06,9.26150791]
[1740352152749,4.5,168.11,168.07,9.26150791]
[1740352153112,4.5,168.11,168.08,5.9495]
[1740352153352,4.5,168.11,168.08,96.31100791]
[1740352153856,9.26150791,168.13,168.08,96.31100791]
[1740352154041,9.26150791,168.13,168.08,87.0495]
[1740352154213,9.26150791,168.12,168.08,81.1]
[1740352155158,9.26150791,168.12,168.08,87.0495]
[1740352157421,9.32450791,168.12,168.08,87.0495]
[1740352157744,0.063,168.12,168.1,9.26150791]
[1740352157919,0.063,168.12,168.08,87.0495]
[1740352159163,0.063,168.12,168.09,9.26150791]
[1740352159659,0.063,168.12,168.1,5.9488]
[1740352162154,0.063,168.12,168.09,5.9491]
[1740352162953,9.32450791,168.12,168.09,5.9491]
[1740352163644,0.063,168.12,168.09,5.9491]
[1740352172150,9.26150791,168.11,168.08,81.1]
[1740352174062,0.063,168.12,168.08,87.0495]
[1740352174234,0.063,168.12,168.08,96.31100791]
[1740352179345,0.063,168.12,168.08,87.0495]
[1740352179545,0.063,168.12,168.08,96.31100791]
[1740352179946,0.063,168.12,168.08,87.0495]
[1740352180359,9.32450791,168.12,168.08,87.0495]
[1740352183844,9.26150791,168.09,168.08,81.1]
[1740352187565,19.65060791,168.09,168.07,0.03]
[1740352187749,46.30753955,168.08,168.07,0.03]
[1740352187953,152.22968841,168.08,168.07,0.03]
[1740352189056,20.0,168.06,168.05,0.03]
[1740352189261,30.77570791,168.06,168.05,0.03]
[1740352189958,36.72590791,168.06,168.05,0.03]
[1740352190758,70.25115677,168.06,168.0,0.03]
[1740352191070,9.26150791,168.01,168.0,0.03]
[1740352191273,13.70150791,168.01,168.0,0.03]
[1740352191847,4.44,168.01,168.0,0.03]
[1740352192064,9.26150791,168.04,168.0,0.03]
[1740352192258,4.44,168.05,168.0,0.03]
[1740352192259,13.70150791,168.05,168.0,9.29150791]
[1740352192462,4.44,168.05,168.01,9.26150791]
[1740352192661,9.26150791,168.07,168.02,9.26150791]
[1740352192970,9.26150791,168.08,168.02,9.26150791]
[1740352193149,9.26150791,168.07,168.02,9.26150791]
[1740352194572,9.26150791,168.07,168.03,5.9513]
[1740352195153,9.26150791,168.08,168.03,15.21280791]
[1740352196878,13.78450791,168.09,168.03,15.21280791]
[1740352197377,9.32450791,168.09,168.03,15.21280791]
[1740352197675,13.76450791,168.09,168.03,15.21280791]
[1740352200180,9.32450791,168.09,168.03,96.31280791]
[1740352200352,0.063,168.09,168.05,9.26150791]
[1740352200552,0.063,168.09,168.06,9.26150791]
[1740352201176,0.063,168.09,168.05,90.36150791]
[1740352201378,0.063,168.09,168.05,81.1]
[1740352201566,9.32450791,168.09,168.06,5.9502]
[1740352202379,13.76450791,168.09,168.06,5.9502]
[1740352204167,4.503,168.09,168.06,5.9502]
[1740352206682,13.76450791,168.09,168.06,5.9502]
[1740352207479,9.26150791,168.07,168.05,81.13]
[1740352208000,9.26150791,168.06,168.05,81.13]
[1740352208484,9.26150791,168.07,168.05,81.13]
[1740352211689,9.26150791,168.07,168.05,0.03]
[1740352212584,9.26150791,168.06,168.05,0.03]
[1740352212791,27.91115677,168.06,168.05,0.03]
[1740352213576,33.86135677,168.06,168.05,0.03]
[1740352217091,36.88734639,168.06,168.05,0.03]
[1740352217885,18.64964886,168.05,168.0,0.03]
[1740352218191,9.26150791,168.01,168.0,0.03]
[1740352218489,13.68150791,168.01,168.0,0.03]
[1740352219292,4.42,168.01,168.0,0.03]
[1740352219688,13.68150791,168.05,168.0,0.03]
[1740352219894,13.68150791,168.05,168.0,9.29150791]
[1740352220072,4.42,168.05,168.0,9.29150791]
[1740352220781,4.42,168.06,168.01,9.26150791]
[1740352221097,4.42,168.06,168.02,9.26150791]
[1740352221284,9.32450791,168.09,168.04,9.26150791]
[1740352221476,0.063,168.09,168.04,9.26150791]
[1740352221675,15.27370791,168.09,168.03,15.21250791]
[1740352221979,9.26150791,168.08,168.03,5.951]
[1740352222280,9.26150791,168.07,168.02,15.21300791]
[1740352222871,9.26150791,168.08,168.02,15.21300791]
[1740352223073,9.26150791,168.07,168.02,5.9515]
[1740352223484,9.26150791,168.07,168.02,15.21300791]
[1740352224478,9.26150791,168.08,168.02,15.21300791]
[1740352224686,6.0122,168.09,168.01,96.31340791]
[1740352224687,9.26150791,168.06,168.01,96.31340791]
[1740352224880,9.26150791,168.06,168.01,87.0519]
[1740352225413,9.26150791,168.05,168.01,81.1]
[1740352225580,9.26150791,168.05,168.0,7.5121]
[1740352227102,9.26150791,168.05,168.0,16.77360791]
[1740352228772,15.21210791,168.05,168.0,7.5121]
[1740352229174,4.42,168.04,168.0,7.5121]
[1740352230100,13.68150791,168.04,168.0,0.03]
[1740352230406,9.26150791,168.03,168.0,0.03]
[1740352230594,9.26150791,168.01,168.0,0.03]
[1740352233785,15.21350791,168.01,168.0,0.03]
[1740352235186,23.06964886,168.04,168.0,0.03]
[1740352235478,9.26150791,168.02,168.0,0.03]
[1740352235690,9.26150791,168.01,168.0,0.03]
[1740352236301,9.26150791,168.02,168.0,0.03]
[1740352237018,15.21320791,168.02,168.0,0.03]
[1740352237216,5.9513,168.03,168.0,0.03]
[1740352237517,15.21280791,168.03,168.0,0.03]
[1740352237900,9.26150791,168.02,168.0,0.03]
[1740352242885,9.26150791,168.01,168.0,0.03]
[1740352244888,15.21330791,168.02,168.0,0.03]
[1740352251488,5.9513,168.03,168.0,0.03]
[1740352251715,4.4,168.02,168.0,0.03]
[1740352261320,9.26150791,168.01,168.0,0.03]
[1740352261891,13.66150791,168.02,168.0,0.03]
[1740352262197,4.4,168.02,168.0,0.03]
[1740352263527,13.66150791,168.02,168.0,0.03]
[1740352263737,9.26150791,168.01,168.0,0.03]
[1740352264128,19.61320791,168.02,168.0,0.03]
[1740352264625,4.4,168.02,168.0,0.03]
[1740352265530,13.66150791,168.02,168.0,0.03]
[1740352266116,9.26150791,168.01,168.0,0.03]
[1740352267307,13.66150791,168.02,168.0,0.03]
[1740352268214,4.4,168.02,168.0,0.03]
[1740352268603,13.66150791,168.02,168.0,0.03]
[1740352268808,9.26150791,168.01,168.0,0.03]
[1740352269205,15.21350791,168.01,168.0,0.03]
[1740352270301,33.86315677,168.01,168.0,0.03]
[1740352270501,114.66315677,168.01,168.0,0.03]
[1740352270702,172.06315677,168.01,168.0,0.03]
[1740352271717,175.02839595,168.01,168.0,0.03]
[1740352275004,151.88150791,168.01,168.0,0.03]
[1740352275627,142.62,168.01,168.0,0.03]
[1740352275812,4.42,168.01,168.0,0.03]
[1740352280845,13.68150791,168.01,168.0,0.03]
[1740352287440,4.42,168.01,168.0,0.03]
[1740352287613,13.68150791,168.01,168.0,0.03]
[1740352299365,4.42,168.01,168.0,0.03]
[1740352308432,80.8,168.04,168.0,0.03]
[1740352308632,85.2,168.04,168.0,0.03]
[1740352309541,4.4,168.04,168.0,0.03]
[1740352309747,13.66150791,168.04,168.0,0.03]
[1740352312759,9.26150791,168.02,168.0,0.03]
[1740352320264,15.21310791,168.02,168.0,0.03]
[1740352320964,9.26150791,168.01,168.0,0.03]
[1740352321160,27.91115677,168.01,168.0,0.03]
[1740352323070,33.86315677,168.01,168.0,0.03]
[1740352324471,70.90918841,168.01,168.0,0.03]
[1740352324971,72.48478841,168.01,168.0,0.03]
[1740352326787,35.43875677,168.01,168.0,0.03]
[1740352326953,38.26315677,168.01,168.0,0.03]
[1740352327151,32.31115677,168.01,168.0,0.03]
[1740352330157,38.26315677,168.01,168.0,0.03]
[1740352331994,75.30918841,168.01,168.0,0.03]
[1740352334047,38.26315677,168.01,168.0,0.03]
[1740352335622,41.23518777,168.01,168.0,0.03]
[1740352336470,27.91115677,168.01,168.0,0.03]
[1740352336677,32.31115677,168.01,168.0,0.03]
[1740352336889,13.66150791,168.01,168.0,0.03]
[1740352337087,4.4,168.01,168.0,0.03]
[1740352337281,4.4,168.02,168.0,0.03]
[1740352337480,80.8,168.04,168.0,0.03]
[1740352337674,94.46150791,168.04,168.0,0.03]
[1740352338270,9.26150791,168.03,168.0,0.03]
[1740352339398,85.2,168.04,168.0,0.03]
[1740352339589,94.46150791,168.04,168.0,0.03]
[1740352339781,9.26150791,168.03,168.0,0.03]
[1740352342992,94.46150791,168.04,168.0,0.03]
[1740352343173,9.26150791,168.02,168.0,0.03]
[1740352343376,9.26150791,168.01,168.0,0.03]
[1740352343984,9.26150791,168.03,168.0,0.03]
[1740352344504,94.46150791,168.04,168.0,0.03]
[1740352345002,9.26150791,168.03,168.0,0.03]
[1740352346309,9.26150791,168.02,168.0,0.03]
[1740352346615,9.26150791,168.01,168.0,0.03]
[1740352346994,9.26150791,168.02,168.0,0.03]
[1740352347193,27.91115677,168.03,168.0,0.03]
[1740352347408,9.26150791,168.03,168.0,0.03]
[1740352347621,85.2,168.04,168.0,0.03]
[1740352347921,0.063,168.05,168.0,9.29150791]
[1740352348405,0.063,168.05,168.03,9.26150791]
[1740352349096,0.063,168.05,168.04,5.9509]
[1740352349811,0.063,168.05,168.02,9.26150791]
[1740352350005,0.063,168.05,168.01,23.33820791]
[1740352350189,9.32450791,168.05,168.01,7.5615]
[1740352350392,0.063,168.05,168.01,7.5615]
[1740352350690,9.26150791,168.02,168.0,81.13]
[1740352350891,9.26150791,168.01,168.0,0.03]
[1740352351312,33.86315677,168.01,168.0,0.03]
[1740352351686,114.66315677,168.01,168.0,0.03]
[1740352351885,151.70918841,168.01,168.0,0.03]
[1740352352114,153.30448841,168.01,168.0,0.03]
[1740352352319,72.50448841,168.01,168.0,0.03]
[1740352352509,72.50448841,168.01,167.99,0.063]
[1740352352510,18.64964886,168.0,167.99,0.063]
[1740352352705,64.95718841,168.0,167.99,0.063]
[1740352352910,65.92718841,168.0,167.95,0.063]
[1740352353101,28.88115677,167.99,167.98,0.0001]
[1740352353309,18.64964886,167.98,167.95,0.063]
[1740352353508,27.91115677,167.96,167.95,0.063]
[1740352353715,34.30185677,167.96,167.95,0.063]
[1740352354205,172.50185677,167.96,167.95,0.063]
[1740352355229,178.45555677,167.96,167.95,0.063]
[1740352355519,166.11115677,167.96,167.95,0.063]
[1740352356021,5.953,167.99,167.95,0.063]
[1740352356223,9.26150791,167.98,167.95,0.063]
[1740352356625,13.70150791,167.99,167.95,0.063]
[1740352356999,94.50150791,167.99,167.95,0.063]
[1740352357218,94.50150791,167.99,167.95,6.0171]
[1740352357607,99.72658067,167.99,167.95,6.0171]
[1740352358015,99.72658067,167.99,167.95,0.063]
[1740352358216,14.48658067,167.98,167.95,0.063]
[1740352358810,4.44,167.99,167.95,0.063]
[1740352359121,14.48658067,168.0,167.95,0.063]
[1740352359328,4.46,167.99,167.95,14.54958067]
[1740352359529,18.64964886,168.01,167.97,14.48658067]
[1740352359530,4.46,168.01,167.97,14.48658067]
[1740352359717,4.523,168.05,168.0,14.48658067]
[1740352360025,19.00958067,168.05,167.99,14.48658067]
[1740352360219,14.48658067,168.03,167.99,5.9525]
[1740352360937,14.48658067,168.04,167.99,20.43908067]
[1740352361626,14.48658067,168.04,167.98,14.48658067]
[1740352361798,14.48658067,168.04,167.99,14.48658067]
[1740352362419,14.48658067,168.04,167.98,14.48658067]
[1740352362742,0.063,168.05,167.99,14.48658067]
[1740352363045,0.063,168.05,168.04,14.48658067]
[1740352364531,0.063,168.05,168.04,20.43748067]
[1740352364831,0.063,168.05,168.04,5.9509]
[1740352365408,0.063,168.05,168.04,20.43748067]
[1740352365836,0.063,168.05,168.04,5.9509]
[1740352372029,0.063,168.05,168.04,20.43748067]
[1740352374161,0.063,168.05,168.03,14.48658067]
[1740352374766,0.063,168.05,168.04,14.48658067]
[1740352375058,0.063,168.05,168.04,20.43748067]
[1740352377659,0.063,168.05,168.04,9.2590496]
[1740352379752,0.063,168.05,168.04,5.9509]
[1740352380055,0.063,168.05,168.03,5.9512]
[1740352381546,0.063,168.05,168.03,15.2102496]
[1740352381936,13.9390496,168.04,167.98,7.7924]
[1740352382149,9.2590496,168.02,167.99,5.9527]
[1740352382457,13.9390496,168.04,167.98,16.7440496]
[1740352382656,4.68,168.04,168.01,9.2590496]
[1740352383164,0.063,168.05,168.0,9.2590496]
[1740352383757,9.2590496,168.03,167.98,5.9829]
[1740352384132,0.063,168.05,168.0,9.2590496]
[1740352384325,0.063,168.05,167.98,5.9829]
[1740352384326,9.3220496,168.05,167.99,9.2590496]
[1740352384535,9.2590496,168.04,167.99,9.2590496]
[1740352384965,9.2590496,168.03,167.98,0.03]
[1740352385349,9.3220496,168.05,167.99,9.2590496]
[1740352385543,0.063,168.05,168.02,9.2590496]
[1740352385960,0.063,168.05,168.01,9.2590496]
[1740352386673,0.063,168.05,168.01,15.2110496]
[1740352390541,0.063,168.05,168.04,9.2590496]
[1740352391860,0.063,168.05,168.04,15.2099496]
[1740352395745,0.063,168.05,168.04,96.3099496]
[1740352397161,0.063,168.05,168.04,81.1]
[1740352398974,9.3220496,168.05,168.04,81.1]
[1740352399159,14.1220496,168.05,167.98,0.03]
[1740352399365,9.2590496,168.02,167.98,0.03]
[1740352400265,9.2590496,168.02,167.98,5.983]
[1740352400997,0.063,168.05,168.01,9.2590496]
[1740352401283,0.063,168.05,168.0,9.2590496]
[1740352401487,9.3220496,168.05,167.99,9.2590496]
[1740352401783,9.3220496,168.05,167.99,14.47462974]
[1740352401784,14.53762974,168.05,167.99,14.47462974]
[1740352401976,14.53762974,168.05,168.0,14.47462974]
[1740352402484,0.063,168.05,168.0,20.42662974]
[1740352403177,0.063,168.05,168.01,14.47462974]
[1740352404287,0.063,168.05,168.02,14.47462974]
[1740352404468,0.063,168.05,168.03,5.9513]
[1740352405679,0.063,168.05,168.03,14.47462974]
[1740352406588,0.063,168.05,168.02,20.42622974]
[1740352409589,0.063,168.05,168.01,5.952]
[1740352409775,0.063,168.05,168.02,14.47462974]
[1740352410894,0.063,168.05,168.03,5.9513]
[1740352412392,0.063,168.05,168.01,20.42662974]
[1740352413490,0.063,168.05,168.01,101.52662974]
[1740352413986,0.063,168.05,168.02,14.47462974]
[1740352414191,0.063,168.05,168.03,5.9513]
[1740352416581,0.063,168.05,168.02,5.9516]
[1740352417492,0.063,168.05,168.01,81.1]
[1740352417673,14.47462974,168.04,168.01,81.1]
[1740352417875,14.47462974,168.03,168.01,81.1]
[1740352419180,14.47462974,168.02,167.98,5.983]
[1740352419380,14.47462974,168.01,167.98,0.03]
[1740352420286,14.47462974,168.01,167.98,5.9829]
[1740352420673,14.47462974,168.02,167.98,5.9829]
[1740352421373,14.47462974,168.02,167.98,0.03]
[1740352421679,9.26700118,168.02,167.98,0.03]
[1740352424586,9.26700118,168.01,167.98,0.03]
[1740352425296,9.26700118,168.02,167.98,0.03]
[1740352425502,9.26700118,168.01,167.98,0.03]
[1740352426405,9.26700118,168.02,167.98,0.03]
[1740352427002,4.72,168.03,167.98,9.29700118]
[1740352427204,10.97160118,168.05,167.99,9.26700118]
[1740352427674,9.26700118,168.04,167.98,9.29700118]
[1740352427876,9.26700118,168.03,167.99,5.9527]
[1740352428074,9.26700118,168.02,167.98,5.983]
[1740352428309,9.26700118,168.01,167.98,5.983]
[1740352428604,9.26700118,168.02,167.98,5.983]
[1740352429094,9.26700118,168.02,167.98,0.03]
[1740352430499,5.951,168.04,167.98,0.03]
[1740352430711,9.26700118,168.02,167.98,0.03]
[1740352433011,9.26700118,168.02,167.98,5.983]
[1740352434922,9.26700118,168.03,167.98,5.983]
[1740352438196,0.063,168.05,168.01,9.26700118]
[1740352438816,9.33000118,168.05,167.99,9.26700118]
[1740352439195,0.063,168.05,168.0,9.26700118]
[1740352440320,0.063,168.05,168.01,5.952]
[1740352441315,0.063,168.03,168.01,5.952]
[1740352448804,0.063,168.03,168.01,15.21900118]
[1740352449025,0.063,168.05,168.04,20.0]
[1740352449237,0.063,168.05,168.04,110.36700118]
[1740352450307,0.063,168.05,168.04,116.31790118]
[1740352451902,0.063,168.05,168.04,87.0509]
[1740352454013,0.063,168.05,168.02,5.9516]
[1740352454214,9.33000118,168.05,168.02,5.9516]
[1740352455039,9.33000118,168.05,168.0,90.36700118]
[1740352455223,9.33000118,168.05,168.01,5.952]
[1740352455422,0.063,168.05,168.01,5.952]
[1740352455848,0.063,168.05,168.03,9.26700118]
[1740352456140,0.063,168.05,168.04,9.26700118]
[1740352457221,0.063,168.05,168.04,15.21790118]
[1740352459166,0.063,168.05,168.04,96.31790118]
[1740352459317,0.0001,168.06,168.04,96.31790118]
[1740352459522,0.0001,168.06,168.05,9.26700118]
[1740352459729,0.0001,168.06,168.05,90.36700118]
[1740352460031,0.0001,168.09,168.08,41.19494886]
[1740352460339,0.0001,168.12,168.11,19.64964886]
[1740352460541,0.0001,168.12,168.11,110.90846476]
[1740352460740,0.0001,168.15,168.14,21.0]
[1740352460931,0.0001,168.15,168.14,49.8084385]
[1740352461125,0.0001,168.15,168.14,68.22679436]
[1740352461348,9.3889387,168.22,168.17,2.509]
[1740352461544,9.3889387,168.22,168.21,1.0]
[1740352461751,0.063,168.22,168.21,1.0]
[1740352462130,0.0001,168.22,168.21,34.07458212]
[1740352462324,0.0001,168.23,168.22,19.64964886]
[1740352462531,0.0001,168.23,168.22,33.9657968]
[1740352462750,0.03,168.25,168.24,21.0]
[1740352463029,0.063,168.26,168.25,34.42493326]
[1740352463229,0.063,168.26,168.25,141.11808212]
[1740352463432,0.063,168.26,168.25,140.11808212]
[1740352463631,0.063,168.26,168.25,121.46843326]
[1740352463871,0.063,168.26,168.25,141.11808212]
[1740352464631,0.063,168.26,168.25,121.46843326]
[1740352464831,0.063,168.26,168.25,122.46843326]
[1740352465054,0.063,168.29,168.27,1.0]
[1740352465363,0.0001,168.3,168.29,38.64964886]
[1740352465567,0.03,168.43,168.31,1.0]
[1740352465798,0.03,168.43,168.35,14.42493326]
[1740352466150,0.03,168.43,168.35,15.31558794]
[1740352466657,0.03,168.43,168.36,18.64964886]
[1740352466835,0.03,168.43,168.41,14.42493326]
[1740352467047,0.03,168.43,168.36,81.99050553]
[1740352467048,0.03,168.43,168.42,14.42493326]
[1740352468048,6.1552,168.47,168.42,14.42493326]
[1740352468249,20.58013326,168.47,168.41,14.42493326]
[1740352468451,16.06323326,168.49,168.43,14.42493326]
[1740352468750,14.42493326,168.51,168.45,14.42493326]
[1740352469185,20.52713326,168.52,168.46,14.42493326]